[Event "NK ABC Kwalificatie 2"]
[Site "Zoetermeer, Netherlands"]
[Date "2025.01.05"]
[Round "5.9"]
[White "Garay, Enzo"]
[Black "Wierenga, Luuk"]
[Result "1/2-1/2"]
[TimeControl "55+10"]
[WhiteFideId "8989948"]
[BlackFideId "8936543"]
[WhiteElo "1811"]
[BlackElo "1908"]

1. e4 {[%clk 00:52:51]} {[%emt 00:02:28]} c6 {[%clk 00:55:17]} {[%emt
00:00:04]} 2. d4 {[%clk 00:52:44]} {[%emt 00:00:17]} d5 {[%clk 00:55:23]}
{[%emt 00:00:04]} 3. Bd3 {[%clk 00:52:50]} {[%emt 00:00:04]} dxe4 {[%clk
00:54:58]} {[%emt 00:00:35]} 4. Bxe4 {[%clk 00:52:44]} {[%emt 00:00:15]} Nf6
{[%clk 00:55:03]} {[%emt 00:00:05]} 5. Bf3 {[%clk 00:52:49]} {[%emt 00:00:05]}
Bf5 {[%clk 00:54:44]} {[%emt 00:00:29]} 6. g4 {[%clk 00:52:47]} {[%emt
00:00:13]} Be4 {[%clk 00:49:38]} {[%emt 00:05:16]} 7. g5 {[%clk 00:52:22]}
{[%emt 00:00:35]} Bxf3 {[%clk 00:49:42]} {[%emt 00:00:07]} 8. Nxf3 {[%clk
00:52:25]} {[%emt 00:00:07]} Nfd7 {[%clk 00:45:19]} {[%emt 00:04:33]} 9. c4
{[%clk 00:48:27]} {[%emt 00:04:08]} e6 {[%clk 00:44:54]} {[%emt 00:00:36]} 10.
Bf4 {[%clk 00:45:37]} {[%emt 00:02:56]} Qa5+ {[%clk 00:41:09]} {[%emt
00:03:57]} 11. Nc3 {[%clk 00:42:24]} {[%emt 00:03:23]} Qf5 {[%clk 00:38:16]}
{[%emt 00:03:03]} 12. Be3 {[%clk 00:30:11]} {[%emt 00:12:23]} Nb6 {[%clk
00:33:28]} {[%emt 00:05:00]} 13. c5 {[%clk 00:24:41]} {[%emt 00:05:39]} Nd5
{[%clk 00:32:58]} {[%emt 00:00:39]} 14. Nxd5 {[%clk 00:22:11]} {[%emt
00:02:41]} Qxd5 {[%clk 00:32:09]} {[%emt 00:00:59]} 15. Rg1 {[%clk 00:22:01]}
{[%emt 00:00:19]} Nd7 {[%clk 00:30:29]} {[%emt 00:01:51]} 16. Bf4 {[%clk
00:19:11]} {[%emt 00:03:00]} b6 {[%clk 00:29:39]} {[%emt 00:01:00]} 17. b4
{[%clk 00:18:02]} {[%emt 00:01:20]} a5 {[%clk 00:28:23]} {[%emt 00:01:25]} 18.
a3 {[%clk 00:16:01]} {[%emt 00:02:11]} axb4 {[%clk 00:27:40]} {[%emt 00:00:54]}
19. axb4 {[%clk 00:16:06]} {[%emt 00:00:05]} Rxa1 {[%clk 00:27:41]} {[%emt
00:00:08]} 20. Qxa1 {[%clk 00:16:12]} {[%emt 00:00:04]} Qe4+ {[%clk 00:27:45]}
{[%emt 00:00:06]} 21. Be3 {[%clk 00:15:05]} {[%emt 00:01:17]} Qxf3 {[%clk
00:27:33]} {[%emt 00:00:22]} 22. Qa8+ {[%clk 00:15:09]} {[%emt 00:00:07]} Ke7
{[%clk 00:27:34]} {[%emt 00:00:08]} 23. b5 {[%clk 00:15:19]} {[%emt 00:00:01]}
Qf5 {[%clk 00:19:56]} {[%emt 00:07:47]} 24. bxc6 {[%clk 00:14:12]} {[%emt
00:01:18]} Qb1+ {[%clk 00:19:14]} {[%emt 00:00:52]} 25. Kd2 {[%clk 00:14:18]}
{[%emt 00:00:05]} Qb4+ {[%clk 00:18:32]} {[%emt 00:00:51]} 26. Kd1 {[%clk
00:13:55]} {[%emt 00:00:34]} Qb1+ {[%clk 00:11:47]} {[%emt 00:06:54]} 27. Ke2
{[%clk 00:13:44]} {[%emt 00:00:21]} Qc2+ {[%clk 00:11:27]} {[%emt 00:00:29]} 28.
Kf3 {[%clk 00:11:45]} {[%emt 00:02:10]} Qf5+ {[%clk 00:11:09]} {[%emt
00:00:28]} 29. Kg3 {[%clk 00:11:39]} {[%emt 00:00:16]} h5 {[%clk 00:05:42]}
{[%emt 00:05:38]} 30. h3 {[%clk 00:11:43]} {[%emt 00:00:06]} Qd5 {[%clk
00:05:08]} {[%emt 00:00:44]} 31. Qb7 {[%clk 00:11:34]} {[%emt 00:00:19]} bxc5
{[%clk 00:04:42]} {[%emt 00:00:36]} 32. Qxd7+ {[%clk 00:11:14]} {[%emt
00:00:29]} Qxd7 {[%clk 00:04:49]} {[%emt 00:00:03]} 33. cxd7 {[%clk 00:11:19]}
{[%emt 00:00:06]} Kxd7 {[%clk 00:03:52]} {[%emt 00:01:06]} 34. dxc5 {[%clk
00:11:22]} {[%emt 00:00:06]} Kc6 {[%clk 00:04:01]} {[%emt 00:00:01]} 35. Ra1
{[%clk 00:11:23]} {[%emt 00:00:10]} g6 {[%clk 00:03:20]} {[%emt 00:00:51]} 36.
Ra7 {[%clk 00:11:27]} {[%emt 00:00:06]} Bxc5 {[%clk 00:02:50]} {[%emt
00:00:40]} 37. Bxc5 {[%clk 00:11:30]} {[%emt 00:00:08]} Kxc5 {[%clk 00:02:57]}
{[%emt 00:00:02]} 38. Rxf7 {[%clk 00:11:33]} {[%emt 00:00:07]} Rg8 {[%clk
00:03:05]} {[%emt 00:00:03]} 39. Kf4 {[%clk 00:11:26]} {[%emt 00:00:16]} Kd6
{[%clk 00:03:11]} {[%emt 00:00:04]} 40. Rf6 {[%clk 00:11:24]} {[%emt 00:00:11]}
Kd5 {[%clk 00:02:54]} {[%emt 00:00:29]} 41. h4 {[%clk 00:10:55]} {[%emt
00:00:38]} Kd6 {[%clk 00:02:47]} {[%emt 00:00:17]} 42. Ke4 {[%clk 00:10:59]}
{[%emt 00:00:06]} Rg7 {[%clk 00:02:40]} {[%emt 00:00:17]} 43. f4 {[%clk
00:11:03]} {[%emt 00:00:06]} Rg8 {[%clk 00:02:42]} {[%emt 00:00:08]} 44. Rf7
{[%clk 00:11:06]} {[%emt 00:00:06]} Ra8 {[%clk 00:02:21]} {[%emt 00:00:32]} 45.
Rg7 {[%clk 00:10:35]} {[%emt 00:00:41]} Ra4+ {[%clk 00:02:30]} {[%emt
00:00:01]} 46. Ke3 {[%clk 00:10:36]} {[%emt 00:00:09]} Ra3+ {[%clk 00:02:38]}
{[%emt 00:00:02]} 47. Ke2 {[%clk 00:10:38]} {[%emt 00:00:08]} Ra2+ {[%clk
00:02:46]} {[%emt 00:00:02]} 48. Kd3 {[%clk 00:10:37]} {[%emt 00:00:11]} Ra3+
{[%clk 00:02:32]} {[%emt 00:00:24]} 49. Kd2 {[%clk 00:10:34]} {[%emt 00:00:12]}
Ra2+ {[%clk 00:02:17]} {[%emt 00:00:25]} 50. Kc3 {[%clk 00:10:32]} {[%emt
00:00:12]} Rf2 {[%clk 00:02:13]} {[%emt 00:00:14]} 51. Rf7 {[%clk 00:10:26]}
{[%emt 00:00:17]} Rh2 {[%clk 00:02:11]} {[%emt 00:00:12]} 52. Rf6 {[%clk
00:10:22]} {[%emt 00:00:14]} Rxh4 {[%clk 00:02:17]} {[%emt 00:00:04]} 53. Rxg6
{[%clk 00:10:29]} {[%emt 00:00:04]} Rxf4 {[%clk 00:02:24]} {[%emt 00:00:02]} 54.
Rh6 {[%clk 00:10:31]} {[%emt 00:00:08]} h4 {[%clk 00:02:16]} {[%emt 00:00:17]}
55. g6 {[%clk 00:10:38]} {[%emt 00:00:03]} Rg4 {[%clk 00:02:06]} {[%emt
00:00:20]} 56. Kd3 {[%clk 00:10:42]} {[%emt 00:00:07]} h3 {[%clk 00:02:00]}
{[%emt 00:00:16]} 57. g7 {[%clk 00:10:43]} {[%emt 00:00:09]} h2 {[%clk
00:01:58]} {[%emt 00:00:12]} 58. Rxh2 {[%clk 00:10:07]} {[%emt 00:00:46]} Rxg7
{[%clk 00:02:06]} {[%emt 00:00:02]} 59. Rf2 {[%clk 00:10:08]} {[%emt 00:00:09]}
Kd5 {[%clk 00:02:13]} {[%emt 00:00:04]} 60. Rf8 {[%clk 00:09:27]} {[%emt
00:00:51]} Rg3+ {[%clk 00:02:20]} {[%emt 00:00:02]} 61. Ke2 {[%clk 00:09:30]}
{[%emt 00:00:07]} Ke4 {[%clk 00:02:27]} {[%emt 00:00:03]} 62. Kf2 {[%clk
00:08:55]} {[%emt 00:00:45]} Ra3 {[%clk 00:02:27]} {[%emt 00:00:11]} 63. Rb8
{[%clk 00:08:48]} {[%emt 00:00:17]} Ra2+ {[%clk 00:02:19]} {[%emt 00:00:18]} 64.
Ke1 {[%clk 00:08:50]} {[%emt 00:00:07]} e5 {[%clk 00:02:23]} {[%emt 00:00:06]}
65. Re8 {[%clk 00:08:46]} {[%emt 00:00:14]} Kf4 {[%clk 00:02:27]} {[%emt
00:00:07]} 66. Re7 {[%clk 00:08:39]} {[%emt 00:00:17]} e4 {[%clk 00:02:33]}
{[%emt 00:00:04]} 67. Rf7+ {[%clk 00:08:12]} {[%emt 00:00:25]} Ke3 {[%clk
00:02:34]} {[%emt 00:00:20]} 68. Kf1 {[%clk 00:07:54]} {[%emt 00:00:27]} Ra1+
{[%clk 00:02:40]} {[%emt 00:00:05]} 69. Kg2 {[%clk 00:07:55]} {[%emt 00:00:09]}
Ke2 {[%clk 00:02:48]} {[%emt 00:00:02]} 70. Rf2+ {[%clk 00:07:55]} {[%emt
00:00:11]} Ke3 {[%clk 00:02:55]} {[%emt 00:00:03]} 71. Rb2 {[%clk 00:07:59]}
{[%emt 00:00:06]} Rd1 {[%clk 00:02:46]} {[%emt 00:00:19]} 72. Rb4 {[%clk
00:07:46]} {[%emt 00:00:22]} Kd3 {[%clk 00:02:17]} {[%emt 00:00:38]} 73. Rb3+
{[%clk 00:07:17]} {[%emt 00:00:40]} Ke2 {[%clk 00:02:22]} {[%emt 00:00:05]} 74.
Rb2+ {[%clk 00:07:12]} {[%emt 00:00:16]} Rd2 {[%clk 00:02:29]} {[%emt
00:00:03]} 75. Rb1 {[%clk 00:07:17]} {[%emt 00:00:05]} e3 {[%clk 00:02:27]}
{[%emt 00:00:11]} 76. Ra1 {[%clk 00:07:24]} {[%emt 00:00:03]} Rd8 {[%clk
00:01:36]} {[%emt 00:01:02]} 77. Ra2+ {[%clk 00:07:25]} {[%emt 00:00:09]} Rd2
{[%clk 00:01:23]} {[%emt 00:00:22]} 78. Ra1 {[%clk 00:07:31]} {[%emt 00:00:04]}
Rb2 {[%clk 00:01:26]} {[%emt 00:00:06]} 79. Kg3 {[%clk 00:06:22]} {[%emt
00:01:19]} Kd3 {[%clk 00:00:51]} {[%emt 00:00:45]} 80. Ra3+ {[%clk 00:06:01]}
{[%emt 00:00:33]} Kd2 {[%clk 00:00:53]} {[%emt 00:00:07]} 81. Ra1 {[%clk
00:06:03]} {[%emt 00:00:07]} e2 {[%clk 00:00:54]} {[%emt 00:00:08]} 82. Kf2
{[%clk 00:06:06]} {[%emt 00:00:07]} Rc2 {[%clk 00:00:50]} {[%emt 00:00:15]} 83.
Rb1 {[%clk 00:05:53]} {[%emt 00:00:22]} Ra2 {[%clk 00:00:50]} {[%emt 00:00:10]}
84. Re1 {[%clk 00:05:37]} {[%emt 00:00:26]} Kd3 {[%clk 00:00:59]} {[%emt
00:00:02]} 85. Rb1 {[%clk 00:05:40]} {[%emt 00:00:07]} Ra8 {[%clk 00:00:42]}
{[%emt 00:00:27]} 86. Rb3+ {[%clk 00:05:44]} {[%emt 00:00:06]} Kc2 {[%clk
00:00:29]} {[%emt 00:00:23]} 87. Re3 {[%clk 00:05:48]} {[%emt 00:00:06]} Kd1
{[%clk 00:00:34]} {[%emt 00:00:05]} 88. Rd3+ {[%clk 00:05:54]} {[%emt
00:00:05]} Kc2 {[%clk 00:00:42]} {[%emt 00:00:02]} 89. Kxe2 {[%clk 00:05:50]}
{[%emt 00:00:14]} 1/2-1/2

[Event "NK ABC Kwalificatie 2"]
[Site "Zoetermeer, Netherlands"]
[Date "2025.01.05"]
[Round "5.10"]
[White "Krylov, Philippe"]
[Black "Winter, Sven"]
[Result "1-0"]
[TimeControl "55+10"]
[WhiteFideId "8776240"]
[BlackFideId "8936015"]
[WhiteElo "2035"]
[BlackElo "1828"]

1. d4 {[%clk 00:55:16]} {[%emt 00:00:04]} Nf6 {[%clk 00:55:15]} {[%emt
00:00:05]} 2. c4 {[%clk 00:55:21]} {[%emt 00:00:04]} c5 {[%clk 00:55:21]}
{[%emt 00:00:04]} 3. d5 {[%clk 00:55:27]} {[%emt 00:00:04]} b5 {[%clk
00:55:27]} {[%emt 00:00:04]} 4. cxb5 {[%clk 00:55:26]} {[%emt 00:00:11]} a6
{[%clk 00:55:32]} {[%emt 00:00:05]} 5. bxa6 {[%clk 00:55:33]} {[%emt 00:00:03]}
d6 {[%clk 00:55:38]} {[%emt 00:00:05]} 6. Nc3 {[%clk 00:55:39]} {[%emt
00:00:04]} g6 {[%clk 00:55:42]} {[%emt 00:00:06]} 7. Nf3 {[%clk 00:55:20]}
{[%emt 00:00:29]} Bg7 {[%clk 00:55:44]} {[%emt 00:00:08]} 8. e4 {[%clk
00:55:27]} {[%emt 00:00:03]} Qa5 {[%clk 00:55:47]} {[%emt 00:00:07]} 9. Nd2
{[%clk 00:52:33]} {[%emt 00:03:04]} Bxa6 {[%clk 00:55:07]} {[%emt 00:00:50]} 10.
Be2 {[%clk 00:48:44]} {[%emt 00:03:58]} O-O {[%clk 00:54:02]} {[%emt 00:01:15]}
11. O-O {[%clk 00:48:49]} {[%emt 00:00:05]} Bxe2 {[%clk 00:53:48]} {[%emt
00:00:24]} 12. Qxe2 {[%clk 00:48:51]} {[%emt 00:00:08]} Qa6 {[%clk 00:53:53]}
{[%emt 00:00:06]} 13. Nb5 {[%clk 00:42:52]} {[%emt 00:06:09]} Nbd7 {[%clk
00:51:59]} {[%emt 00:02:04]} 14. a4 {[%clk 00:42:55]} {[%emt 00:00:07]} Rfb8
{[%clk 00:51:06]} {[%emt 00:01:03]} 15. Ra3 {[%clk 00:42:52]} {[%emt 00:00:13]}
Ne8 {[%clk 00:44:53]} {[%emt 00:06:23]} 16. b3 {[%clk 00:39:08]} {[%emt
00:03:54]} Nc7 {[%clk 00:43:19]} {[%emt 00:01:44]} 17. Qc4 {[%clk 00:23:11]}
{[%emt 00:16:07]} Nxb5 {[%clk 00:42:06]} {[%emt 00:01:23]} 18. axb5 {[%clk
00:23:20]} {[%emt 00:00:01]} Qb6 {[%clk 00:41:50]} {[%emt 00:00:26]} 19. b4
{[%clk 00:23:06]} {[%emt 00:00:24]} Rxa3 {[%clk 00:37:46]} {[%emt 00:04:14]} 20.
Bxa3 {[%clk 00:22:42]} {[%emt 00:00:34]} cxb4 {[%clk 00:37:03]} {[%emt
00:00:53]} 21. Qxb4 {[%clk 00:19:06]} {[%emt 00:03:46]} Qxb5 {[%clk 00:35:35]}
{[%emt 00:01:38]} 22. Qxb5 {[%clk 00:19:01]} {[%emt 00:00:16]} Rxb5 {[%clk
00:35:34]} {[%emt 00:00:11]} 23. Rb1 {[%clk 00:16:10]} {[%emt 00:03:01]} Rxb1+
{[%clk 00:32:35]} {[%emt 00:03:09]} 24. Nxb1 {[%clk 00:16:19]} {[%emt
00:00:02]} f5 {[%clk 00:32:03]} {[%emt 00:00:42]} 25. f3 {[%clk 00:11:33]}
{[%emt 00:04:57]} Bd4+ {[%clk 00:27:15]} {[%emt 00:04:58]} 26. Kf1 {[%clk
00:11:41]} {[%emt 00:00:01]} Nf6 {[%clk 00:26:15]} {[%emt 00:01:09]} 27. Nd2
{[%clk 00:11:36]} {[%emt 00:00:15]} Bc3 {[%clk 00:25:19]} {[%emt 00:01:06]} 28.
Nb1 {[%clk 00:11:27]} {[%emt 00:00:20]} Be5 {[%emt 00:01:48]} 29. Nd2 {[%clk
00:11:12]} Bf4 {[%clk 00:23:13]} {[%emt 00:01:01]} 30. Ke2 {[%clk 00:11:03]}
{[%emt 00:00:20]} Bxd2 {[%clk 00:22:59]} {[%emt 00:00:24]} 31. Kxd2 {[%clk
00:11:10]} {[%emt 00:00:03]} fxe4 {[%clk 00:23:00]} {[%emt 00:00:10]} 32. fxe4
{[%clk 00:11:04]} {[%emt 00:00:16]} Nxe4+ {[%clk 00:23:03]} {[%emt 00:00:07]}
33. Kd3 {[%clk 00:11:03]} {[%emt 00:00:12]} Nf6 {[%clk 00:22:41]} {[%emt
00:00:31]} 34. Kd4 {[%clk 00:11:05]} {[%emt 00:00:08]} Kf7 {[%clk 00:22:01]}
{[%emt 00:00:51]} 35. Bc1 {[%clk 00:10:49]} {[%emt 00:00:26]} e6 {[%clk
00:20:42]} {[%emt 00:01:28]} 36. dxe6+ {[%clk 00:10:50]} {[%emt 00:00:09]} Kxe6
{[%clk 00:20:44]} {[%emt 00:00:08]} 37. Bg5 {[%clk 00:10:43]} {[%emt 00:00:16]}
Ng4 {[%clk 00:20:02]} {[%emt 00:00:53]} 38. h3 {[%clk 00:09:27]} {[%emt
00:01:27]} Ne5 {[%clk 00:19:53]} {[%emt 00:00:18]} 39. Bc1 {[%clk 00:09:17]}
{[%emt 00:00:20]} d5 {[%clk 00:19:18]} {[%emt 00:00:46]} 40. Bb2 {[%clk
00:08:11]} {[%emt 00:01:17]} Nc6+ {[%clk 00:18:36]} {[%emt 00:00:51]} 41. Kd3
{[%clk 00:07:26]} {[%emt 00:00:53]} Kd6 {[%clk 00:17:46]} {[%emt 00:01:02]} 42.
Bg7 {[%clk 00:07:24]} {[%emt 00:00:12]} Ke6 {[%clk 00:17:21]} {[%emt 00:00:35]}
43. Bb2 {[%clk 00:07:22]} {[%emt 00:00:12]} Kf5 {[%clk 00:17:01]} {[%emt
00:00:31]} 44. g3 {[%clk 00:07:20]} {[%emt 00:00:12]} h5 {[%clk 00:16:20]}
{[%emt 00:00:50]} 45. Ke3 {[%clk 00:07:12]} {[%emt 00:00:18]} Ne5 {[%clk
00:13:53]} {[%emt 00:02:38]} 46. Bc3 {[%clk 00:06:47]} {[%emt 00:00:36]} Nf7
{[%clk 00:12:02]} {[%emt 00:02:01]} 47. Kd4 {[%clk 00:06:46]} {[%emt 00:00:11]}
Ke6 {[%clk 00:10:46]} {[%emt 00:01:26]} 48. Bd2 {[%clk 00:06:51]} {[%emt
00:00:05]} Nd6 {[%clk 00:10:11]} {[%emt 00:00:45]} 49. Kd3 {[%clk 00:06:11]}
{[%emt 00:00:50]} Ne4 {[%clk 00:09:12]} {[%emt 00:01:09]} 50. Be1 {[%clk
00:06:14]} {[%emt 00:00:07]} Ke5 {[%clk 00:06:53]} {[%emt 00:02:30]} 51. g4
{[%clk 00:06:09]} {[%emt 00:00:15]} hxg4 {[%clk 00:05:07]} {[%emt 00:01:56]} 52.
hxg4 {[%clk 00:06:18]} {[%emt 00:00:01]} Nc5+ {[%clk 00:05:10]} {[%emt
00:00:07]} 53. Kc3 {[%clk 00:05:05]} {[%emt 00:01:23]} Ke4 {[%clk 00:05:09]}
{[%emt 00:00:11]} 54. Bd2 {[%clk 00:04:33]} {[%emt 00:00:41]} d4+ {[%clk
00:04:50]} {[%emt 00:00:31]} 55. Kc4 {[%clk 00:04:23]} {[%emt 00:00:20]} Nd7
{[%clk 00:04:49]} {[%emt 00:00:10]} 56. g5 {[%clk 00:03:33]} {[%emt 00:01:01]}
Ne5+ {[%clk 00:04:56]} {[%emt 00:00:02]} 57. Kb3 {[%clk 00:03:31]} {[%emt
00:00:12]} Nf3 {[%clk 00:04:54]} {[%emt 00:00:12]} 58. Bc1 {[%clk 00:03:36]}
{[%emt 00:00:05]} Kd3 {[%clk 00:03:59]} {[%emt 00:01:05]} 59. Bf4 {[%clk
00:01:56]} {[%emt 00:01:49]} Ke4 {[%clk 00:04:02]} {[%emt 00:00:08]} 60. Bc1
{[%clk 00:02:02]} {[%emt 00:00:04]} d3 {[%clk 00:02:36]} {[%emt 00:01:36]} 61.
Ba3 {[%clk 00:01:00]} {[%emt 00:01:11]} Nxg5 {[%clk 00:02:28]} {[%emt
00:00:19]} 62. Kc3 {[%clk 00:00:57]} {[%emt 00:00:14]} Nf3 {[%clk 00:02:33]}
{[%emt 00:00:04]} 63. Bc5 {[%clk 00:00:59]} {[%emt 00:00:08]} g5 {[%clk
00:02:33]} {[%emt 00:00:10]} 64. Bb6 {[%clk 00:01:05]} {[%emt 00:00:04]} g4
{[%clk 00:02:35]} {[%emt 00:00:08]} 65. Bf2 {[%clk 00:01:13]} {[%emt 00:00:02]}
Ne5 {[%clk 00:01:47]} {[%emt 00:00:58]} 66. Kd2 {[%clk 00:00:46]} {[%emt
00:00:38]} Nc4+ {[%clk 00:01:05]} {[%emt 00:00:52]} 67. Ke1 {[%clk 00:00:19]}
{[%emt 00:00:37]} Ne3 {[%clk 00:01:05]} {[%emt 00:00:10]} 68. Kd2 {[%clk
00:00:20]} {[%emt 00:00:10]} Nf5 {[%clk 00:01:11]} {[%emt 00:00:04]} 69. Ba7
{[%clk 00:00:18]} {[%emt 00:00:12]} g3 {[%clk 00:01:10]} {[%emt 00:00:11]} 70.
Bb6 {[%clk 00:00:26]} {[%emt 00:00:02]} Nh4 {[%clk 00:00:45]} {[%emt 00:00:35]}
71. Ke1 {[%clk 00:00:27]} {[%emt 00:00:10]} Kd5 {[%emt 00:01:01]} 1-0

[Event "NK ABC Kwalificatie 2"]
[Site "Zoetermeer, Netherlands"]
[Date "2025.01.05"]
[Round "5.11"]
[White "Teianu, Sabin"]
[Black "Van Haaften, Jelle"]
[Result "1-0"]
[TimeControl "55+10"]
[WhiteFideId "8926082"]
[BlackFideId "8687283"]
[WhiteElo "2073"]
[BlackElo "1897"]

1. d4 {[%clk 00:55:18]} {[%emt 00:00:01]} Nf6 {[%clk 00:55:18]} {[%emt
00:00:03]} 2. c4 {[%clk 00:55:23]} {[%emt 00:00:06]} e6 {[%clk 00:55:20]}
{[%emt 00:00:07]} 3. Nc3 {[%clk 00:55:29]} {[%emt 00:00:04]} Bb4 {[%clk
00:55:22]} {[%emt 00:00:07]} 4. Bd2 {[%clk 00:55:35]} {[%emt 00:00:04]} O-O
{[%clk 00:55:23]} {[%emt 00:00:09]} 5. Nf3 {[%clk 00:55:41]} {[%emt 00:00:05]}
b6 {[%clk 00:54:25]} {[%emt 00:01:09]} 6. e3 {[%clk 00:55:46]} {[%emt
00:00:06]} Bb7 {[%clk 00:54:28]} {[%emt 00:00:05]} 7. Bd3 {[%clk 00:55:50]}
{[%emt 00:00:07]} d6 {[%clk 00:53:20]} {[%emt 00:01:19]} 8. O-O {[%clk
00:55:51]} {[%emt 00:00:08]} Nbd7 {[%clk 00:53:25]} {[%emt 00:00:04]} 9. a3
{[%clk 00:55:51]} {[%emt 00:00:11]} Bxc3 {[%clk 00:53:25]} {[%emt 00:00:09]} 10.
Bxc3 {[%clk 00:55:58]} {[%emt 00:00:03]} Ne4 {[%clk 00:52:28]} {[%emt
00:01:07]} 11. Be1 {[%clk 00:56:01]} {[%emt 00:00:07]} f5 {[%clk 00:49:50]}
{[%emt 00:02:47]} 12. Nd2 {[%clk 00:56:01]} {[%emt 00:00:10]} e5 {[%clk
00:43:59]} {[%emt 00:06:01]} 13. Bxe4 {[%clk 00:54:08]} {[%emt 00:02:03]} fxe4
{[%clk 00:43:49]} {[%emt 00:00:19]} 14. d5 {[%clk 00:54:07]} {[%emt 00:00:12]}
Qh4 {[%clk 00:39:31]} {[%emt 00:04:27]} 15. g3 {[%clk 00:51:09]} {[%emt
00:03:10]} Qh3 {[%clk 00:37:29]} {[%emt 00:02:12]} 16. Nxe4 {[%clk 00:46:47]}
{[%emt 00:04:32]} Rf5 {[%clk 00:34:12]} {[%emt 00:03:27]} 17. f4 {[%clk
00:44:42]} {[%emt 00:02:15]} Raf8 {[%clk 00:27:21]} {[%emt 00:07:00]} 18. Nf2
{[%clk 00:43:55]} {[%emt 00:00:57]} Qh6 {[%clk 00:27:15]} {[%emt 00:00:17]} 19.
e4 {[%clk 00:43:41]} {[%emt 00:00:24]} R5f7 {[%clk 00:22:57]} {[%emt 00:04:28]}
20. Ng4 {[%clk 00:35:48]} {[%emt 00:08:02]} Qh3 {[%clk 00:21:41]} {[%emt
00:01:26]} 21. f5 {[%clk 00:33:53]} {[%emt 00:02:07]} Nf6 {[%clk 00:15:45]}
{[%emt 00:06:05]} 22. Nf2 {[%clk 00:28:15]} {[%emt 00:05:48]} Qh5 {[%clk
00:15:15]} {[%emt 00:00:37]} 23. Qxh5 {[%clk 00:28:14]} {[%emt 00:00:14]} Nxh5
{[%clk 00:15:22]} {[%emt 00:00:03]} 24. Bd2 {[%clk 00:28:08]} {[%emt 00:00:17]}
Ba6 {[%clk 00:14:35]} {[%emt 00:00:58]} 25. b3 {[%clk 00:26:26]} {[%emt
00:01:52]} g6 {[%clk 00:12:02]} {[%emt 00:02:43]} 26. Ng4 {[%clk 00:23:08]}
{[%emt 00:03:27]} Rd7 {[%clk 00:09:37]} {[%emt 00:02:35]} 27. fxg6 {[%clk
00:14:10]} {[%emt 00:09:08]} hxg6 {[%clk 00:08:58]} {[%emt 00:00:49]} 28. Nh6+
{[%clk 00:12:11]} {[%emt 00:02:10]} Kg7 {[%clk 00:08:33]} {[%emt 00:00:34]} 29.
Rxf8 {[%clk 00:12:04]} {[%emt 00:00:17]} Kxf8 {[%clk 00:08:39]} {[%emt
00:00:03]} 30. Rf1+ {[%clk 00:11:58]} {[%emt 00:00:18]} Kg7 {[%clk 00:08:36]}
{[%emt 00:00:13]} 31. a4 {[%clk 00:11:54]} {[%emt 00:00:14]} Nf6 {[%clk
00:08:23]} {[%emt 00:00:21]} 32. Re1 {[%clk 00:11:18]} {[%emt 00:00:48]} Rd8
{[%clk 00:08:05]} {[%emt 00:00:28]} 33. Bg5 {[%clk 00:10:17]} {[%emt 00:01:11]}
Bc8 {[%clk 00:05:49]} {[%emt 00:02:26]} 34. Bxf6+ {[%clk 00:06:03]} {[%emt
00:04:23]} Kxf6 {[%emt 00:01:02]} 35. Rf1+ Kg7 {[%clk 00:04:46]} {[%emt
00:00:31]} 36. Nf7 {[%clk 00:06:05]} {[%emt 00:00:08]} Rf8 {[%clk 00:04:53]}
{[%emt 00:00:02]} 37. Ng5 {[%clk 00:06:08]} {[%emt 00:00:07]} Rxf1+ {[%clk
00:04:56]} {[%emt 00:00:06]} 38. Kxf1 {[%clk 00:06:08]} {[%emt 00:00:11]} Bg4
{[%clk 00:05:03]} {[%emt 00:00:02]} 39. Ke1 {[%clk 00:06:08]} {[%emt 00:00:11]}
Kf6 {[%clk 00:04:43]} {[%emt 00:00:29]} 40. Nh7+ {[%clk 00:05:50]} {[%emt
00:00:28]} Kg7 {[%clk 00:04:51]} {[%emt 00:00:03]} 41. Ng5 {[%clk 00:05:40]}
{[%emt 00:00:20]} Kf6 {[%clk 00:04:58]} {[%emt 00:00:03]} 42. h4 {[%clk
00:05:32]} {[%emt 00:00:18]} a5 {[%clk 00:04:59]} {[%emt 00:00:10]} 43. Kd2
{[%clk 00:05:26]} {[%emt 00:00:15]} Ke7 {[%clk 00:04:48]} {[%emt 00:00:22]} 44.
Ne6 {[%clk 00:01:50]} {[%emt 00:03:46]} Bxe6 {[%clk 00:04:51]} {[%emt
00:00:06]} 45. dxe6 {[%clk 00:01:57]} {[%emt 00:00:04]} Kxe6 {[%clk 00:05:00]}
{[%emt 00:00:02]} 46. g4 {[%clk 00:01:56]} {[%emt 00:00:10]} c6 {[%clk
00:05:03]} {[%emt 00:00:07]} 47. Ke3 {[%clk 00:02:00]} {[%emt 00:00:06]} d5
{[%clk 00:05:10]} {[%emt 00:00:03]} 48. exd5+ {[%clk 00:02:02]} {[%emt
00:00:08]} cxd5 {[%clk 00:05:19]} 49. cxd5+ {[%clk 00:02:00]} {[%emt 00:00:12]}
Kxd5 {[%clk 00:05:21]} {[%emt 00:00:08]} 50. h5 {[%clk 00:02:06]} {[%emt
00:00:03]} gxh5 {[%clk 00:05:28]} {[%emt 00:00:03]} 51. gxh5 {[%clk 00:02:12]}
{[%emt 00:00:04]} Kc5 {[%emt 00:00:07]} 52. h6 Kb4 {[%clk 00:05:43]} 53. h7
{[%clk 00:02:28]} {[%emt 00:00:03]} Kxb3 {[%emt 00:00:09]} 54. h8=Q {[%emt
00:00:02]} Kxa4 {[%clk 00:05:58]} {[%emt 00:00:01]} 55. Qxe5 {[%clk 00:02:38]}
{[%emt 00:00:03]} b5 {[%clk 00:06:06]} {[%emt 00:00:03]} 56. Kd3 {[%clk
00:02:45]} {[%emt 00:00:02]} b4 {[%clk 00:06:14]} {[%emt 00:00:02]} 57. Kc2
{[%clk 00:02:54]} {[%emt 00:00:01]} b3+ {[%clk 00:06:14]} {[%emt 00:00:10]} 58.
Kb2 {[%clk 00:03:02]} {[%emt 00:00:02]} Kb4 {[%clk 00:06:16]} {[%emt 00:00:07]}
59. Qc3+ {[%emt 00:00:12]} 1-0